bitfinex-derivatives/quotes_ETHF0:USTF0_20250929
["timestamp","ask_amount","ask_price","bid_price","bid_amount"]
[1759148919214,0.7693,4118.2,4118.1,1.24216]
[1759148919411,0.2203,4118.2,4118.1,1.44716]
[1759148919612,0.2203,4118.5,4118.4,0.205]
[1759148919813,0.7693,4118.5,4118.4,1.0103]
[1759148920112,0.7693,4118.5,4118.4,1.44714]
[1759148921116,1.34013,4118.5,4118.4,0.43684]
[1759148921316,1.34013,4118.5,4118.4,1.24214]
[1759148921715,1.34013,4118.5,4118.4,0.90564]
[1759148921914,0.9033,4118.5,4118.4,0.90564]
[1759148922516,0.9033,4118.5,4118.4,1.24214]
[1759148923710,0.7693,4118.5,4118.4,1.44714]
[1759148934721,0.8992,4118.5,4118.4,1.24214]
[1759148935028,0.7693,4118.5,4118.4,1.46174]
[1759148937921,1.20613,4118.5,4118.4,0.8053]
[1759148938124,1.33603,4118.5,4118.4,0.245]
[1759148938422,1.33603,4118.5,4118.4,0.5777]
[1759148938621,1.33603,4118.5,4118.4,0.68184]
[1759148939022,1.33603,4118.5,4118.4,1.01454]
[1759148939325,1.33603,4118.5,4118.4,1.22064]
[1759148940230,0.8992,4118.5,4118.4,1.22064]
[1759148940430,0.7693,4118.5,4118.4,1.19524]
[1759148940633,0.7693,4118.5,4118.4,1.44024]
[1759148940827,1.20613,4118.5,4118.4,1.44024]
[1759148941830,0.43682,4118.6,4118.5,0.56243]
[1759148942031,1.20562,4118.6,4118.5,0.7584]
[1759148942731,1.20562,4118.6,4118.5,1.0034]
[1759148942923,1.20562,4118.6,4118.5,1.44023]
[1759148944729,1.20562,4118.6,4118.5,0.7584]
[1759148944927,1.20562,4118.6,4118.5,0.245]
[1759148946024,0.65914,4118.4,4118.3,0.64295]
[1759148946332,1.20564,4118.4,4118.3,1.22065]
[1759148947230,1.20564,4118.4,4118.3,1.44025]
[1759148947426,1.20564,4118.4,4118.3,1.19525]
[1759148947631,1.20564,4118.4,4118.3,1.0034]
[1759148948631,0.87084,4118.3,4118.2,1.73465568]
[1759148948828,1.20564,4118.3,4118.2,0.245]
[1759148949226,1.20564,4118.3,4118.2,0.5777]
[1759148949431,1.20564,4118.3,4118.2,0.7838]
[1759148950026,1.20564,4118.3,4118.2,1.44025]
[1759148950930,0.7688,4118.3,4118.2,1.44025]
[1759148951434,1.20564,4118.3,4118.2,1.44025]
[1759148952032,1.20564,4118.3,4118.2,1.19525]
[1759148952236,3.2078,4118.6,4118.5,0.56242]
[1759148952534,3.2078,4118.6,4118.5,1.56582]
[1759148953331,0.22470369,4119.0,4118.9,0.86248]
[1759148953637,0.22470369,4119.0,4118.9,1.44018]
[1759148953833,0.00240369,4119.0,4118.9,1.44018]
[1759148957431,0.00240369,4119.0,4118.9,8.17731216]
[1759148957730,0.00240369,4119.0,4118.9,6.44018]
[1759148957931,0.00240369,4119.0,4118.9,6.19518]
[1759148958135,0.00240369,4119.0,4118.9,6.44018]
[1759148959242,0.00240369,4119.0,4118.9,8.17377247]
[1759148961034,0.00240369,4119.0,4118.9,6.44018]
[1759148963243,0.00240369,4119.0,4118.9,8.17196615]
[1759148965741,3.2078,4119.7,4119.6,1.1801]
[1759148965935,3.2078,4119.7,4119.6,1.4251]
[1759148966141,3.2078,4120.2,4120.1,0.43665]
[1759148966345,3.9794,4120.2,4120.1,1.42505]
[1759148966739,3.98189737,4120.2,4120.1,1.42768952]
[1759148967339,3.42639737,4120.2,4120.1,1.42768952]
[1759148967541,3.21029737,4120.2,4120.1,1.18268952]
[1759148967737,3.21029737,4120.2,4120.1,1.42768952]
[1759148968142,3.42639737,4120.2,4120.1,1.42768952]
[1759148969344,3.76659737,4120.2,4120.1,1.42768952]
[1759148969548,4.41853737,4120.2,4120.1,1.42768952]
[1759148969743,3.98189737,4120.2,4120.1,1.42768952]
[1759148970743,3.21029737,4120.2,4120.1,1.42768952]
[1759148971150,3.42639737,4120.2,4120.1,1.18268952]
[1759148971343,3.42639737,4120.2,4120.1,1.42768952]
[1759148971544,3.76659737,4120.2,4120.1,1.42768952]
[1759148972047,4.41853737,4120.2,4120.1,1.42768952]
[1759148972348,4.41853737,4120.2,4120.1,1.18268952]
[1759148972653,4.41853737,4120.2,4120.1,1.42768952]
[1759148973351,4.41853737,4120.2,4120.1,1.18268952]
[1759148973352,3.98189737,4120.2,4120.1,1.18268952]
[1759148973555,3.98189737,4120.2,4120.1,1.42768952]
[1759148974849,4.41853737,4120.2,4120.1,0.00263952]
[1759148975050,4.41853737,4120.2,4120.1,0.24763952]
[1759148975457,4.41853737,4120.2,4120.1,0.68428952]
[1759148975954,4.41853737,4120.2,4120.1,0.00263952]
[1759148976552,9.41853737,4120.2,4120.1,0.00263952]
[1759148976750,9.41853737,4120.2,4120.1,0.24763952]
[1759148979553,4.41853737,4120.2,4120.1,0.24763952]
[1759148981351,4.41853737,4120.2,4120.1,0.00263952]
[1759148985050,3.98189737,4120.2,4120.1,0.74603952]
[1759148985250,3.98189737,4120.2,4120.1,1.18268952]
[1759148985458,3.64169737,4120.2,4120.1,1.18268952]
[1759148985664,3.98189737,4120.2,4120.1,0.47043952]
[1759148985857,4.41853737,4120.2,4120.1,0.24763952]
[1759148986260,4.41853737,4120.2,4120.1,0.90708952]
[1759148986556,4.41853737,4120.2,4120.1,0.53713952]
[1759148986764,4.41853737,4120.2,4120.1,0.78213952]
[1759148987057,4.41853737,4120.2,4120.1,0.24763952]
[1759148987860,4.41853737,4120.2,4120.1,0.00263952]
[1759148988164,4.41853737,4120.2,4120.1,0.24763952]
[1759148990154,4.41853737,4120.2,4120.1,0.00263952]
[1759149000270,4.41853737,4120.2,4120.1,0.43928952]
[1759149000473,3.98189737,4120.2,4120.1,0.97308952]
[1759149000977,3.98189737,4120.2,4120.1,1.18518952]
[1759149001475,4.41853737,4120.2,4120.1,1.18518952]
[1759149002372,4.41853737,4120.2,4120.1,0.00263952]
[1759149002670,4.94170607,4120.2,4120.1,0.00263952]
[1759149003868,4.41853737,4120.2,4120.1,0.00263952]
[1759149005670,4.94052964,4120.2,4120.1,0.00263952]
[1759149007468,0.43666,4120.0,4119.9,0.0242]
[1759149007668,1.82576276,4120.0,4119.9,0.0242]
[1759149007867,0.43674,4119.2,4119.1,1.73104477]
[1759149008178,1.17254,4119.2,4119.1,1.21556]
[1759149008368,0.7358,4119.2,4119.1,1.21556]
[1759149008570,0.7358,4119.2,4119.1,1.21772767]
[1759149009070,0.7358,4119.2,4119.1,1.42982767]
[1759149009379,0.2061,4119.5,4119.4,1.18262]
[1759149009674,1.30381,4119.5,4119.4,1.18262]
[1759149009879,1.30381,4119.5,4119.4,0.7459]
[1759149010471,0.7358,4119.5,4119.4,0.7459]
[1759149010665,0.7358,4119.5,4119.4,1.42762]
[1759149011066,0.4367,4119.6,4119.5,0.99771]
[1759149011376,1.1725,4119.6,4119.5,0.7459]
[1759149011576,1.1725,4119.6,4119.5,0.5338]
[1759149011875,1.17252,4119.4,4119.3,0.0242]
[1759149012077,1.17252,4119.4,4119.3,0.2692]
[1759149012486,1.17252,4119.4,4119.3,0.803]
[1759149012676,1.17252,4119.4,4119.3,0.0242]
[1759149012980,1.17252,4119.4,4119.3,0.2692]
[1759149013181,1.17252,4119.4,4119.3,0.803]
[1759149013372,1.17252,4119.4,4119.3,0.0242]
[1759149013676,1.17252,4119.4,4119.3,0.2692]
[1759149014074,1.17252,4119.4,4119.3,0.245]
[1759149014481,1.17252,4119.4,4119.3,0.7961]
[1759149014982,1.17252,4119.4,4119.3,0.245]
[1759149015382,1.19854,4119.2,4119.1,0.55326767]
[1759149015583,1.19854,4119.2,4119.1,0.79826767]
[1759149015985,1.19854,4119.2,4119.1,0.00216767]
[1759149016182,1.19854,4119.2,4119.1,0.24716767]
[1759149016683,1.19854,4119.2,4119.1,0.00216767]
[1759149017586,4.40634,4119.2,4119.1,0.00216767]
[1759149022687,45.20634,4119.2,4119.1,0.00216767]
[1759149027291,45.72731243,4119.2,4119.1,0.00216767]
[1759149028186,1.33327,4119.0,4118.9,0.0242]
[1759149028483,0.65142,4118.5,4118.4,0.542]
[1759149028689,1.20222,4118.5,4118.4,0.542]
[1759149029083,1.20222,4118.5,4118.4,0.54465226]
[1759149029385,1.33332,4118.5,4118.4,0.00265226]
[1759149029784,0.7654,4118.5,4118.4,0.75475226]
[1759149030187,1.20222,4118.5,4118.4,0.75475226]
[1759149033497,0.7654,4118.5,4118.4,1.19158226]
[1759149033797,1.20222,4118.5,4118.4,1.19158226]
[1759149034192,1.20222,4118.5,4118.4,0.75475226]
[1759149034492,1.20222,4118.5,4118.4,1.19158226]
[1759149035201,1.20222,4118.5,4118.4,0.75475226]
[1759149036503,0.7654,4118.5,4118.4,1.19158226]
[1759149036688,0.2146,4118.5,4118.4,1.19158226]
[1759149037092,1.33332,4118.5,4118.4,0.00265226]
[1759149051417,1.33332,4118.5,4118.4,0.98148226]
[1759149051617,1.20222,4118.5,4118.4,0.75475226]
[1759149053607,1.20222,4118.5,4118.4,1.19158226]
[1759149054912,0.7654,4118.5,4118.4,1.19158226]
[1759149057322,0.8914,4118.5,4118.4,1.19158226]
[1759149059922,1.32822,4118.5,4118.4,0.00265226]
[1759149060224,0.8914,4118.5,4118.4,0.77888226]
[1759149060424,3.2078,4118.6,4118.5,1.36412]
[1759149060610,3.9531,4118.6,4118.5,1.36412]
[1759149060924,3.9531,4118.6,4118.5,1.23042]
[1759149062827,4.38991,4118.6,4118.5,0.7936]
[1759149063127,4.38991,4118.6,4118.5,0.5665]
[1759149063815,4.38991,4118.6,4118.4,0.00265226]
[1759149063816,1.30812,4118.5,4118.4,0.00265226]
[1759149064012,1.30812,4118.5,4118.4,0.43948226]
[1759149064922,0.8713,4118.5,4118.4,1.00598226]
[1759149067126,1.30812,4118.5,4118.4,1.00598226]
[1759149067422,1.30812,4118.5,4118.4,0.22975226]
[1759149067625,1.30812,4118.5,4118.4,0.00265226]
[1759149067824,1.30812,4118.5,4118.4,0.43948226]
[1759149069719,1.30812,4118.5,4118.4,0.00265226]
[1759149070219,1.83091852,4118.5,4118.4,0.00265226]
[1759149072523,1.83091852,4118.5,4118.2,0.2692]
[1759149072524,0.86524,4118.3,4118.2,0.0242]
[1759149072729,1.70493852,4118.3,4118.2,0.0242]
[1759149073027,1.1822,4117.7,4117.6,0.8115]
[1759149073321,0.371,4118.5,4117.6,0.8115]
[1759149073322,3.2078,4119.1,4119.0,0.9273]
[1759149073524,40.8,4119.8,4119.5,0.8907]
[1759149073525,3.2078,4119.7,4119.5,0.8907]
[1759149073827,3.2078,4119.7,4119.6,1.0009]
[1759149074420,3.4211,4119.7,4119.6,0.7559]
[1759149074625,3.9505,4119.7,4119.6,1.0009]
[1759149075714,3.9505,4119.7,4119.6,0.7559]
[1759149075919,3.2078,4119.7,4119.6,1.0009]
[1759149076725,0.7427,4120.1,4120.0,0.7559]
[1759149078628,0.7427,4120.1,4120.0,0.5319]
[1759149080729,0.5366,4120.9,4120.8,0.4421]
[1759149081028,0.5366,4120.9,4120.8,0.7559]
[1759149081226,0.2133,4120.9,4120.8,0.7559]
[1759149081620,0.3233,4121.2,4121.1,0.43654]
[1759149081820,0.00225861,4121.2,4121.1,1.19244]
[1759149082219,0.74495861,4121.2,4121.1,0.7559]
[1759149082423,0.133,4121.0,4120.9,0.3138]
[1759149082625,0.8757,4121.0,4120.9,0.5319]
[1759149082826,0.2133,4121.0,4120.9,0.7559]
[1759149083130,0.00225861,4121.2,4121.1,0.7559]
[1759149085232,0.00225861,4121.2,4121.1,1.0009]
[1759149086423,0.00225861,4121.2,4121.1,0.7559]
[1759149086622,0.00225861,4121.2,4121.1,1.0009]
[1759149087135,0.00225861,4121.2,4121.1,1.19244]
[1759149087330,0.00225861,4121.2,4121.1,1.43744]
[1759149091127,0.16836,4121.5,4121.4,0.85371]
[1759149091331,0.16836,4121.5,4121.4,4.36951]
[1759149092034,0.16836,4121.5,4121.4,4.61451]
[1759149092234,0.17070316,4121.5,4121.4,4.61451]
[1759149093426,0.17070316,4121.5,4121.4,4.36951]
[1759149093631,0.17070316,4121.5,4121.4,4.61451]
[1759149094330,0.07439439,4121.5,4121.4,9.61451]
[1759149094531,0.96098,4122.6,4122.5,0.7252]
[1759149094729,0.96098,4122.6,4122.5,1.0952]
[1759149094931,41.76098,4122.6,4122.5,1.0952]
[1759149095132,41.3246,4122.6,4122.5,1.0952]
[1759149095334,41.76098,4122.6,4122.5,1.0952]
[1759149095534,0.96375988,4122.6,4122.5,1.09801485]
[1759149096136,1.17545988,4122.6,4122.5,1.09801485]
[1759149096533,1.17545988,4122.6,4122.5,0.97301485]
[1759149097742,0.73907988,4122.6,4122.5,1.09801485]
[1759149098040,0.21607988,4122.6,4122.5,1.09801485]
[1759149098341,0.00277988,4122.6,4122.5,1.41941025]
[1759149098644,0.43915988,4122.6,4122.5,1.41941025]
[1759149098840,0.96375988,4122.6,4122.5,1.41941025]
[1759149099040,0.73907988,4122.6,4122.5,1.41941025]
[1759149099539,1.17545988,4122.6,4122.5,1.17441025]
[1759149099734,0.52737988,4122.6,4122.5,1.41941025]
[1759149100043,0.21607988,4122.6,4122.5,1.41941025]
[1759149100240,0.65245988,4122.6,4122.5,1.41941025]
[1759149100442,0.00277988,4122.6,4122.5,1.41941025]
[1759149100745,0.65245988,4122.6,4122.5,1.17441025]
[1759149100943,0.00277988,4122.6,4122.5,1.17441025]
[1759149101144,0.43627,4123.7,4123.2,0.308]
[1759149101439,1.17257,4123.7,4123.6,0.7252]
[1759149101635,0.86132,4123.2,4123.1,3.4188]
[1759149101839,1.17262,4123.2,4123.1,4.29336334]
[1759149102038,1.17493735,4123.2,4123.1,4.49956334]
[1759149102337,0.00231735,4123.2,4123.1,3.933]
[1759149102541,0.00231735,4123.2,4123.1,4.178]
[1759149102741,0.00231735,4123.2,4123.1,3.933]
[1759149102943,0.00231735,4123.2,4123.1,4.178]
[1759149103429,0.00231735,4123.2,4123.1,4.61433]
[1759149103635,0.00231735,4123.2,4123.1,4.178]
[1759149103833,0.65193735,4123.2,4123.1,4.178]
[1759149104035,0.21561735,4123.2,4123.1,4.178]
[1759149104336,1.17493735,4123.2,4123.1,4.178]
[1759149104943,1.17493735,4123.2,4123.1,3.933]
[1759149105133,0.00231735,4123.2,4123.1,4.178]
[1759149106445,1.09052,4124.3,4123.1,4.178]
[1759149106446,3.06155131,4126.6,4125.5,0.125]
[1759149106649,0.7363,4126.6,4126.5,3.625]
[1759149106846,0.2133,4126.6,4126.5,4.44265076]
[1759149107145,0.3113,4127.2,4126.5,4.44265076]
[1759149107451,0.00252293,4127.2,4127.1,3.933]
[1759149107641,0.00252293,4127.2,4127.1,4.52765076]
[1759149107838,0.73882293,4127.2,4127.1,4.01345076]
[1759149108144,0.00252293,4127.2,4127.1,4.52765076]
[1759149108344,0.73882293,4127.2,4127.1,3.80245076]
[1759149108645,0.00252293,4127.2,4127.1,4.52765076]
[1759149109443,0.022,4127.9,4127.8,0.7252]
[1759149109643,0.022,4127.9,4127.8,4.52765076]
[1759149110041,40.8,4128.9,4127.8,4.52765076]
[1759149110042,41.0133,4128.9,4128.8,0.4172]
[1759149110344,0.5246,4129.9,4129.8,0.211]
[1759149110648,41.97467402,4129.9,4129.8,3.56042527]
[1759149110848,1.30506,4129.5,4129.4,0.251]
[1759149111146,0.43573,4128.8,4128.7,3.2078]
[1759149111346,1.17203,4128.8,4128.7,3.4188]
[1759149111546,1.17203,4128.8,4128.0,0.125]
[1759149111547,1.17207,4128.4,4128.3,0.7252]
[1759149111753,1.1721,4128.1,4128.0,0.211]
[1759149112048,1.1721,4128.1,4128.0,0.21369198]
[1759149112248,0.7471,4128.1,4128.0,0.00269198]
[1759149112451,5.7471,4128.1,4128.0,0.00269198]
[1759149112646,0.43589,4127.3,4127.2,3.2078]
[1759149112847,0.3113,4127.3,4126.7,3.2078]
[1759149113051,0.74724,4126.8,4126.7,3.2078]
[1759149113248,0.74724,4126.8,4126.7,0.251]
[1759149113644,0.74924587,4126.8,4126.7,0.25410693]
[1759149113948,0.74924587,4126.8,4126.7,0.00310693]
[1759149114444,5.74924587,4126.8,4126.7,0.00310693]
[1759149114655,0.75939,4126.3,4126.2,0.0242]
[1759149114858,0.3234,4126.3,4126.2,0.0242]
[1759149115054,0.133,4126.5,4126.1,0.076]
[1759149115243,0.3234,4126.3,4126.2,0.315]
[1759149115642,0.3234,4126.3,4126.2,0.3179255]
[1759149115852,0.3234,4126.3,4126.2,0.0029255]
[1759149116251,41.1234,4126.3,4126.2,0.0029255]
[1759149117449,0.43605,4125.8,4125.7,3.2078]
[1759149117654,0.75945,4125.8,4125.7,3.4588]
[1759149117852,5.75945,4125.8,4124.9,0.315]
[1759149118056,0.7595,4125.3,4125.2,3.2078]
[1759149118354,0.3234,4124.6,4124.5,3.2078]
[1759149118546,0.3234,4124.6,4124.5,3.2099709]
[1759149118746,0.3234,4124.6,4124.5,3.4609709]
[1759149119147,0.3234,4124.6,4124.5,3.2099709]
[1759149120258,0.3234,4124.6,4124.5,0.0021709]
[1759149120947,0.75953,4125.0,4124.6,0.315]
[1759149121143,0.3234,4125.4,4124.8,0.315]
[1759149121342,3.2078,4125.7,4125.0,0.1273]
[1759149121644,40.8,4125.6,4125.5,0.1273]
[1759149121849,40.8,4125.6,4125.5,0.3783]
[1759149122051,40.8,4125.6,4125.5,0.6933]
[1759149122249,0.43602,4126.1,4125.6,0.315]
[1759149122550,0.43602,4126.1,4126.0,0.4423]
[1759149122852,0.3234,4126.0,4125.9,3.2078]
[1759149123147,1.41364,4125.4,4124.9,0.315]
[1759149123344,0.75957,4124.6,4124.5,3.5249709]
[1759149123650,0.75957,4124.6,4124.5,3.4609709]
[1759149124055,0.75957,4124.6,4124.5,0.0021709]
[1759149124256,0.75957,4124.6,4124.5,0.2531709]
[1759149124459,0.75957,4124.6,4124.5,0.0021709]
[1759149124652,5.75957,4124.6,4124.5,0.0021709]
[1759149125445,6.01057,4124.6,4124.5,0.0021709]
[1759149125749,0.75963,4124.1,4124.0,3.2078]
[1759149126155,1.41398,4124.1,4123.5,3.2078]
[1759149126362,0.43628,4123.6,4123.5,3.5228]
[1759149126656,0.43913956,4123.6,4123.5,3.52520623]
[1759149127060,0.00285956,4123.6,4123.5,3.65250623]
[1759149127753,0.00285956,4123.6,4123.5,3.90350623]
[1759149129260,0.00285956,4123.6,4123.5,3.65250623]
[1759149129558,0.00285956,4123.6,4123.5,3.90350623]
[1759149129766,0.32625956,4123.6,4123.5,3.52520623]
[1759149130060,0.32625956,4123.6,4123.5,3.46120623]
[1759149130455,0.32625956,4123.6,4123.5,3.52520623]
[1759149130652,0.00285956,4123.6,4123.5,3.90350623]
[1759149131258,0.00285956,4123.6,4123.5,4.33100623]
[1759149131559,0.22255956,4123.6,4123.5,4.33100623]
[1759149131857,0.54595956,4123.6,4123.5,3.95270623]
[1759149132051,0.54595956,4123.6,4123.5,4.20370623]
[1759149132762,0.76905956,4123.6,4123.5,4.20370623]
[1759149133655,0.00285956,4123.6,4123.5,4.33530623]
[1759149134761,0.00285956,4123.6,4123.5,4.08430623]
[1759149135059,0.00285956,4123.6,4123.5,4.33530623]
[1759149135358,0.43913956,4123.6,4123.5,4.33530623]
[1759149135746,0.00285956,4123.6,4123.5,4.33530623]
[1759149138361,0.43913956,4123.6,4123.5,4.33530623]
[1759149139158,1.21113956,4123.6,4123.5,3.95270623]
[1759149139558,1.21113956,4123.6,4123.5,3.46120623]
[1759149139861,1.21113956,4123.6,4122.9,0.27525507]
[1759149139862,1.33144,4123.0,4122.9,0.27525507]
[1759149140054,1.33144,4123.0,4122.9,0.02425507]
[1759149140257,0.4377,4122.2,4122.1,0.5343]
[1759149140455,0.43645,4122.0,4121.9,3.2078]
[1759149140758,0.43649,4121.6,4121.5,0.1316]
[1759149140959,0.43649,4121.6,4121.5,0.3826]
[1759149141154,0.3343,4121.7,4121.5,0.38544721]
[1759149141348,40.8,4122.2,4121.6,0.3184]
[1759149141547,0.43648,4121.7,4121.6,0.3184]
[1759149141753,0.43648,4121.7,4121.6,0.5694]
[1759149142753,0.43648,4121.7,4121.5,0.13444721]
[1759149142754,0.43648,4121.7,4121.5,0.00284721]
[1759149142960,0.3343,4121.6,4121.5,0.00284721]
[1759149143562,5.3343,4121.6,4121.5,7.21e-06]
[1759149144360,46.1343,4121.6,4121.5,7.21e-06]
[1759149146062,46.3853,4121.6,4121.5,7.21e-06]
[1759149146261,46.8259,4121.6,4121.5,7.21e-06]
[1759149146972,46.8259,4121.6,4120.2,3.2078]
[1759149146973,1.19453,4120.3,4120.2,3.2078]
[1759149147567,0.43668,4119.8,4119.7,3.2078]
[1759149147866,1.19762207,4119.8,4119.7,3.67351945]
[1759149149169,1.19762207,4119.8,4119.7,3.42251945]
[1759149149566,1.19762207,4119.8,4119.7,0.00281945]
[1759149151075,41.99762207,4119.8,4119.7,0.00281945]
[1759149153677,46.99762207,4119.8,4119.7,0.00281945]
[1759149154073,0.43677,4119.0,4118.9,0.0871]
[1759149154274,1.19467,4119.0,4118.9,0.221]
[1759149154478,1.32337,4119.0,4118.9,0.2119]
[1759149154770,1.1947,4118.7,4118.6,4.1986]
[1759149154975,0.6602,4118.7,4118.6,4.1986]
[1759149155172,3.3365,4119.5,4119.0,0.427]
[1759149155377,1.19462,4119.4,4119.3,0.7408]
[1759149156472,1.19462,4119.4,4119.3,0.2119]
[1759149157576,1.19462,4119.4,4119.3,0.5257]
[1759149159071,41.23972207,4119.8,4119.7,0.7408]
[1759149159271,40.80304207,4119.8,4119.7,0.7408]
[1759149159775,0.00304207,4119.8,4119.7,3.9486]
[1759149159980,0.00304207,4119.8,4119.7,8.9486]
[1759149160176,3.2078,4120.5,4120.4,0.7408]
[1759149160481,3.2078,4121.0,4120.9,0.7408]
[1759149160979,3.9657,4121.0,4120.9,0.9908]
[1759149161180,3.96822378,4121.0,4120.9,0.9908]
[1759149161481,0.7579,4120.6,4120.5,0.9908]
[1759149161678,1.19453,4120.3,4120.2,3.7335]
[1759149161876,0.66003,4120.3,4120.2,4.1986]
[1759149162382,1.19453,4120.3,4120.2,0.2119]
[1759149162579,1.19453,4120.3,4120.2,0.4619]
[1759149163170,0.66007,4119.9,4119.8,0.7408]
[1759149163379,0.7579,4119.8,4119.7,3.4578]
[1759149164086,0.7579,4119.8,4119.7,3.2078]
[1759149164287,0.43671,4119.5,4119.4,0.677]
[1759149164482,0.3173,4119.9,4119.4,0.677]
[1759149164682,0.97737,4119.9,4119.8,0.7408]
[1759149165383,0.43671,4119.5,4119.4,0.677]
[1759149165587,1.19461,4119.5,4119.4,0.4619]
[1759149165884,0.2234,4119.2,4119.1,3.7335]
[1759149166085,1.19464,4119.2,4119.1,3.2078]
[1759149166792,1.19468,4118.9,4118.8,0.25]
[1759149166991,0.6602,4118.7,4118.6,0.00990571]
[1759149167187,1.1947,4118.7,4118.6,0.00180571]
[1759149168989,41.9947,4118.7,4118.6,0.00180571]
[1759149169984,45.2025,4118.7,4118.6,0.00180571]
[1759149170192,50.69530913,4118.7,4118.6,0.00180571]
[1759149170489,1.19476,4118.1,4118.0,0.0242]
[1759149170686,4.8954839,4118.1,4118.0,0.0242]
[1759149171087,45.6954839,4118.1,4118.0,0.0242]
[1759149171487,45.69821827,4118.1,4118.0,0.02603081]
[1759149171686,45.94821827,4118.1,4118.0,0.02603081]
[1759149172591,0.97768,4117.0,4116.9,3.7335]
[1759149172788,0.446,4117.0,4116.6,0.081]
[1759149172989,0.75431,4116.7,4116.6,0.3948]
[1759149173486,0.75431,4116.7,4116.6,0.39712861]
[1759149173896,0.75431,4116.7,4116.6,0.00232861]
[1759149174086,0.43701,4116.7,4116.6,0.34232861]
[1759149175503,0.77451,4116.7,4116.6,0.00232861]
[1759149176298,0.99211,4116.7,4116.6,0.00232861]
[1759149176496,6.45251,4116.7,4116.6,0.00232861]
[1759149176697,6.45251,4116.7,4115.5,0.4632]
[1759149176698,0.2176,4115.6,4115.5,0.5571]
[1759149176893,0.5551,4115.6,4115.5,0.7731]
[1759149177389,0.7645,4115.6,4115.5,0.7731]
[1759149177590,0.7645,4115.6,4115.5,0.77488661]
[1759149177788,40.8,4115.9,4115.8,0.4331]
[1759149177991,3.64483,4116.5,4116.4,0.7731]
[1759149178390,0.4646,4117.0,4116.4,0.7731]
[1759149178391,3.2078,4117.0,4116.5,0.4748]
[1759149178600,4.40928,4117.0,4116.9,0.5571]
[1759149178802,1.20151,4116.7,4116.6,0.4681]
[1759149178998,1.20151,4116.7,4116.6,1.0241]
[1759149179198,0.43699,4116.9,4116.6,1.0241]
[1759149179503,0.2176,4116.4,4116.3,3.9809]
[1759149179803,1.20154,4116.4,4116.3,4.2319]
[1759149180000,3.6724,4117.0,4116.3,4.2319]
[1759149180202,0.437,4116.8,4116.7,0.556]
[1759149180404,3.2078,4117.0,4116.9,0.4331]
[1759149180598,0.437,4116.8,4116.3,3.5478]
[1759149180904,1.20154,4116.4,4116.3,3.2078]
[1759149181202,3.3349,4117.0,4116.3,3.9809]
[1759149181402,1.20149,4116.9,4116.8,0.2171]
[1759149181903,1.20149,4116.9,4116.5,0.34]
[1759149181904,0.7645,4116.9,4116.5,0.34]
[1759149182103,0.3375,4116.9,4116.5,0.5679]
[1759149182301,3.86238,4117.0,4116.9,0.7731]
[1759149182496,3.2078,4117.0,4116.9,0.7731]
[1759149182693,3.2078,4117.6,4117.5,0.1348]
[1759149183000,0.00273437,4118.1,4118.0,0.4748]
[1759149183193,0.00273437,4118.1,4118.0,0.7268]
[1759149183493,0.00273437,4118.1,4117.5,3.2078]
[1759149183494,0.3375,4117.7,4117.5,3.2078]
[1759149183696,0.3375,4117.7,4117.6,0.252]
[1759149183914,0.3375,4117.7,4117.6,0.34]
[1759149184099,0.43689,4117.8,4117.6,0.252]
[1759149184408,0.43688,4118.0,4117.6,0.592]
[1759149184602,0.43959437,4118.1,4117.7,0.34]
[1759149185102,0.00273437,4118.1,4117.6,0.252]
[1759149185300,0.00273437,4118.1,4117.5,3.3426]
[1759149185301,0.43691,4117.6,4117.5,3.2078]
[1759149185600,0.1271,4118.0,4117.5,3.2078]
[1759149185799,0.3375,4117.9,4117.6,0.34]
[1759149186007,0.4369,4117.7,4117.6,0.34]
[1759149186302,0.4369,4117.7,4117.6,0.592]
[1759149186698,0.43689,4117.9,4117.7,0.34]
[1759149186894,0.4369,4117.7,4117.6,0.34]
[1759149187102,0.4369,4117.7,4117.6,0.592]
[1759149187499,3.64740437,4118.1,4117.7,0.34]
[1759149187699,0.43688,4118.0,4117.7,0.34]
[1759149188000,0.43689,4117.9,4117.6,0.252]
[1759149188197,0.00273437,4118.1,4117.6,0.252]
[1759149188198,0.4369,4117.8,4117.6,0.252]
[1759149188401,0.43689,4117.8,4117.6,0.252]
[1759149188599,0.43689,4117.8,4117.7,0.34]
[1759149188806,0.77441,4117.6,4117.5,3.2078]
[1759149189111,0.77441,4117.6,4117.5,3.4598]
[1759149189609,0.77441,4117.6,4117.5,3.7998]
[1759149189797,0.1271,4118.0,4117.5,3.7998]
[1759149189999,0.7744,4117.7,4117.6,0.34]
[1759149190306,0.7744,4117.7,4117.5,0.252]
[1759149190307,0.3375,4117.6,4117.5,0.252]
[1759149190504,0.4369,4117.7,4117.5,0.592]
[1759149190810,0.4369,4117.7,4117.6,0.34]
[1759149191011,0.7744,4117.7,4117.6,0.34]
[1759149191201,0.3375,4117.9,4117.6,0.34]
[1759149191407,3.86499437,4118.1,4118.0,0.7731]
[1759149191609,3.42813437,4118.1,4118.0,0.7731]
[1759149192311,3.42813437,4118.1,4118.0,0.9079]
[1759149192312,0.00273437,4118.1,4118.0,0.9079]
[1759149192502,3.64455,4119.2,4118.7,0.34]
[1759149192708,3.64455,4119.2,4118.5,0.1348]
[1759149192709,3.2078,4119.2,4118.9,0.34]
[1759149192909,3.64454,4119.2,4119.0,0.1348]
[1759149193110,3.2078,4119.2,4119.0,0.57176]
[1759149193308,3.2078,4119.8,4119.2,0.315]
[1759149193506,3.21083381,4119.8,4119.6,0.7517]
[1759149193708,3.21083381,4119.8,4119.7,0.567]
[1759149194310,0.43672,4119.4,4119.3,0.315]
[1759149194513,0.321,4119.4,4119.3,0.567]
[1759149194816,3.21083381,4119.8,4119.5,0.135]
[1759149195107,3.21083381,4119.8,4119.6,0.315]
[1759149195304,3.21083381,4119.8,4119.7,0.567]